[Event "Slovakia Chess Open 2024"]
[Site "Modra"]
[Date "2024.03.04"]
[Round "7.6"]
[White "Smetana, Peter"]
[Black "Pisarcik, Richard"]
[Result "1-0"]
[ECO "C47"]
[WhiteElo "1993"]
[BlackElo "1855"]
[Annotator "NA RC"]
[PlyCount "93"]
[EventDate "2024.02.29"]
[EventType "swiss"]
[EventCountry "SVK"]
[SourceTitle "playchess.com"]
[Source "ChessBase"]
[SourceQuality "1"]
[TimeControl "5400+30"]

1. e4 {[%emt 0:00:08]} e5 {[%emt 0:00:28]} 2. Nf3 {[%emt 0:00:16]} Nc6 {[%emt 0:00:19]} 3. Nc3 {[%emt 0:00:19]} Nf6 {[%emt 0:00:06]} 4. d4 {[%emt 0:00:11]} exd4 {[%emt 0:00:18]} 5. Nxd4 {[%emt 0:00:07]} Bb4 {[%emt 0:00:10]} 6. Nxc6 {[%emt 0:00:06]} bxc6 {[%emt 0:00:22]} 7. Bd3 {[%emt 0:00:08]} d5 {[%emt 0:00:48]} 8. exd5 {[%emt 0:00:13]} cxd5 {[%emt 0:00:48]} 9. O-O {[%emt 0:00:44]} O-O {[%emt 0:00:44]} 10. h3 {[%emt 0:00:23]} c6 {[%emt 0:02:14]} 11. Qf3 {[%emt 0:00:44]} Rb8 {[%emt 0:01:18]} 12. Bf4 {[%emt 0:00:32]} Rb7 $11 {[%emt 0:02:02]} 13. a3 {[%emt 0:04:15]} Bd6 {[%emt 0:13:51]} 14. b3 {[%emt 0:02:18]} Re8 {[%emt 0:01:51]} 15. Ne2 {[%emt 0:09:48]} Bxf4 {[%emt 0:06:12]} 16. Qxf4 {[%emt 0:02:12]} Nh5 {[%emt 0:03:58]} 17. Qf3 {[%emt 0:05:00]} Qg5 {[%emt 0:01:27]} 18. Kh1 {[%emt 0:16:34]} Rbe7 {[%emt 0:07:57]} 19. Nd4 {[%emt 0:09:56]} Nf4 {[%emt 0:04:58]} 20. Nxc6 {[%emt 0:04:23]} Re6 {[%emt 0:01:23]} 21. Nxa7 {[%emt 0:16:31]} Nxd3 {[%emt 0:17:33]} 22. Qxd3 {[%emt 0:01:29]} Bd7 {[%emt 0:06:36]} 23. Nb5 {[%emt 0:08:14]} Rg6 {[%emt 0:02:31]} 24. Rg1 {[%emt 0:01:10]} Rh6 {[%emt 0:03:30]} 25. Nd4 {[%emt 0:00:55]} Re4 {[%emt 0:04:00]} 26. Rad1 {[%emt 0:06:08]} Reh4 {[%emt 0:01:58]} 27. Qg3 {[%emt 0:00:32]} Qd8 {[%emt 0:04:41]} 28. Rd3 {[%emt 0:01:24]} g6 {[%emt 0:01:32]} 29. Rgd1 {[%emt 0:00:56]} Qc8 {[%emt 0:01:45]} 30. Kg1 {[%emt 0:01:35]} Bxh3 {[%emt 0:02:08]} 31. gxh3 {[%emt 0:01:52]} Rxh3 {[%emt 0:00:25]} 32. Qg2 {[%emt 0:00:27]} Rh2 {[%emt 0:07:39]} 33. Qxh2 {[%emt 0:00:29]} Rxh2 {[%emt 0:00:04]} 34. Kxh2 {[%emt 0:00:04]} Qg4 {[%emt 0:00:12]} 35. a4 {[%emt 0:00:25]} Qh4+ {[%emt 0:00:24]} 36. Kg2 {[%emt 0:00:03]} Qg4+ {[%emt 0:00:13]} 37. Kf1 {[%emt 0:00:03]} h5 {[%emt 0:01:00]} 38. a5 {[%emt 0:00:17]} Qe4 {[%emt 0:00:32]} 39. a6 {[%emt 0:00:17]} Qh1+ {[%emt 0:00:19]} 40. Ke2 {[%emt 0:00:04]} Qe4+ {[%emt 0:00:07]} 41. Kd2 {[%emt 0:00:08]} Qf4+ {[%emt 0:00:15]} 42. Kc3 {[%emt 0:00:07]} Qc7+ {[%emt 0:00:22]} 43. Kb2 {[%emt 0:00:06]} Qa7 {[%emt 0:00:22]} 44. Ra1 {[%emt 0:00:04]} f5 {[%emt 0:00:18]} 45. Nb5 {[%emt 0:00:47]} Qg7+ {[%emt 0:01:37]} 46. c3 {[%emt 0:00:03]} Qe7 {[%emt 0:00:47]} 47. Rd2 {[%emt 0:00:04]} 1-0

[Event "Slovakia Chess Open 2024"]
[Site "Modra"]
[Date "2024.03.04"]
[Round "7.7"]
[White "Mruskovic, Radoslav"]
[Black "Palka, Miroslav"]
[Result "1/2-1/2"]
[ECO "B22"]
[WhiteElo "1933"]
[BlackElo "1780"]
[Annotator "NA RC"]
[PlyCount "36"]
[EventDate "2024.02.29"]
[EventType "swiss"]
[EventCountry "SVK"]
[SourceTitle "playchess.com"]
[Source "ChessBase"]
[SourceQuality "1"]
[TimeControl "5400+30"]

1. e4 {[%emt 0:00:02]} c5 {[%emt 0:02:09]} 2. Nf3 {[%emt 0:00:12]} d6 {[%emt 0:00:27]} 3. c3 {[%emt 0:00:05]} Nc6 {[%emt 0:00:41]} 4. d4 {[%emt 0:00:28]} cxd4 {[%emt 0:00:07]} 5. cxd4 {[%emt 0:00:07]} Nf6 {[%emt 0:00:33]} 6. Nc3 {[%emt 0:00:26]} g6 {[%emt 0:00:32]} 7. Bb5 {[%emt 0:00:46]} Bd7 {[%emt 0:02:57]} 8. Bf4 {[%emt 0:03:00]} Bg7 {[%emt 0:01:51]} 9. d5 {[%emt 0:03:30]} Nb8 {[%emt 0:02:16]} 10. O-O {[%emt 0:03:57]} O-O {[%emt 0:00:22]} 11. Rc1 {[%emt 0:00:46]} a6 {[%emt 0:06:09]} 12. Be2 {[%emt 0:04:57]} Bg4 {[%emt 0:07:35]} 13. h3 {[%emt 0:08:02]} Bxf3 {[%emt 0:00:13]} 14. Bxf3 {[%emt 0:00:23]} Nbd7 {[%emt 0:00:22]} 15. Qd2 {[%emt 0:03:43]} Qa5 {[%emt 0:01:21]} 16. Be3 {[%emt 0:03:56]} Rac8 {[%emt 0:02:33]} 17. Be2 {[%emt 0:05:20]} b5 {[%emt 0:09:22]} 18. a3 {[%emt 0:03:25]} Ne5 {[%emt 0:07:46]} 1/2-1/2

[Event "Slovakia Chess Open 2024"]
[Site "Modra"]
[Date "2024.03.04"]
[Round "7.8"]
[White "Bucor, Mark"]
[Black "Novomeska, Karin"]
[Result "0-1"]
[ECO "B12"]
[WhiteElo "1852"]
[BlackElo "1929"]
[Annotator "NA RC"]
[PlyCount "53"]
[EventDate "2024.02.29"]
[EventType "swiss"]
[EventCountry "SVK"]
[SourceTitle "playchess.com"]
[Source "ChessBase"]
[SourceQuality "1"]
[TimeControl "5400+30"]

1. e4 {[%emt 0:00:08]} c6 {[%emt 0:00:04]} 2. d4 {[%emt 0:00:06]} d5 {[%emt 0:00:06]} 3. f3 {[%emt 0:00:06]} e6 {[%emt 0:00:26]} 4. Nc3 {[%emt 0:00:30]} Bb4 {[%emt 0:00:38]} 5. Bd2 {[%emt 0:00:31]} Nd7 {[%emt 0:05:53]} 6. Nh3 {[%emt 0:12:15]} Nb6 {[%emt 0:18:00]} 7. a3 {[%emt 0:04:22]} Bxc3 {[%emt 0:02:06]} 8. Bxc3 {[%emt 0:00:10]} Na4 {[%emt 0:02:07]} 9. Bd3 {[%emt 0:01:19]} Nxc3 {[%emt 0:01:38]} 10. bxc3 {[%emt 0:00:08]} Nf6 {[%emt 0:00:53]} 11. O-O {[%emt 0:01:13]} Qa5 {[%emt 0:02:54]} 12. Qe1 {[%emt 0:01:46]} c5 {[%emt 0:04:32]} 13. e5 {[%emt 0:02:15]} Nd7 {[%emt 0:00:46]} 14. f4 {[%emt 0:05:48]} c4 {[%emt 0:07:31]} 15. Be2 {[%emt 0:00:54]} Nb6 {[%emt 0:04:43]} 16. Qg3 {[%emt 0:05:33]} g6 {[%emt 0:06:28]} 17. Rf3 {[%emt 0:01:18]} Na4 {[%emt 0:07:28]} 18. Kf1 {[%emt 0:16:08]} Bd7 {[%emt 0:02:01]} 19. Qg5 {[%emt 0:00:21]} Nxc3 {[%emt 0:10:58]} 20. Qf6 {[%emt 0:01:04]} Rf8 {[%emt 0:00:16]} 21. Ng5 {[%emt 0:18:22]} Ne4 {[%emt 0:03:59]} 22. Nxe4 {[%emt 0:00:06]} dxe4 {[%emt 0:00:05]} 23. Rh3 {[%emt 0:00:11]} h5 {[%emt 0:05:23]} 24. g4 {[%emt 0:11:26]} Qd5 {[%emt 0:11:53]} 25. gxh5 {[%emt 0:00:54]} g5 {[%emt 0:01:36]} 26. h6 {[%emt 0:01:46]} e3 {[%emt 0:00:17]} 27. h7 {[%emt 0:01:47]} 0-1

[Event "Slovakia Chess Open 2024"]
[Site "Modra"]
[Date "2024.03.04"]
[Round "7.9"]
[White "Petrik, Matus"]
[Black "Nosal, Tobias"]
[Result "1-0"]
[ECO "C10"]
[WhiteElo "1812"]
[BlackElo "1773"]
[Annotator "NA RC"]
[PlyCount "31"]
[EventDate "2024.02.29"]
[EventType "swiss"]
[EventCountry "SVK"]
[SourceTitle "playchess.com"]
[Source "ChessBase"]
[SourceQuality "1"]
[TimeControl "5400+30"]

1. e4 {[%emt 0:11:10]} e6 {[%emt 0:00:10]} 2. d4 {[%emt 0:00:04]} d5 {[%emt 0:00:05]} 3. Nc3 {[%emt 0:00:06]} dxe4 {[%emt 0:00:29]} 4. Nxe4 {[%emt 0:00:02]} Bd7 {[%emt 0:00:10]} 5. Nf3 {[%emt 0:00:45]} Bc6 {[%emt 0:00:13]} 6. Bd3 {[%emt 0:00:25]} Nd7 {[%emt 0:00:10]} 7. O-O {[%emt 0:00:44]} Ngf6 {[%emt 0:00:13]} 8. Neg5 {[%emt 0:01:48]} Bxf3 {[%emt 0:19:54]} 9. Qxf3 {[%emt 0:01:12]} c6 {[%emt 0:09:23]} 10. Re1 {[%emt 0:00:19]} Qe7 {[%emt 0:21:50]} 11. c4 {[%emt 0:09:27]} O-O-O {[%emt 0:05:50]} 12. Bf4 {[%emt 0:02:15]} Nb6 {[%emt 0:09:56]} 13. d5 {[%emt 0:03:15]} cxd5 {[%emt 0:09:48]} 14. cxd5 {[%emt 0:05:45]} Nfxd5 {[%emt 0:01:28]} 15. Rac1+ {[%emt 0:00:19]} Kd7 {[%emt 0:00:46]} 16. Bb5# {[%emt 0:00:05]} 1-0

[Event "Slovakia Chess Open 2024"]
[Site "Modra"]
[Date "2024.03.04"]
[Round "7.10"]
[White "Pietrucha, Jaroslaw"]
[Black "Fratric, Jakub"]
[Result "1-0"]
[ECO "B43"]
[WhiteElo "1781"]
[BlackElo "1750"]
[Annotator "NA RC"]
[PlyCount "51"]
[EventDate "2024.02.29"]
[EventType "swiss"]
[EventCountry "SVK"]
[SourceTitle "playchess.com"]
[Source "ChessBase"]
[SourceQuality "1"]
[TimeControl "5400+30"]

1. e4 {[%emt 0:03:48]} c5 {[%emt 0:00:13]} 2. Nf3 {[%emt 0:00:18]} e6 {[%emt 0:00:15]} 3. d4 {[%emt 0:00:27]} cxd4 {[%emt 0:00:10]} 4. Nxd4 {[%emt 0:00:27]} Nf6 {[%emt 0:00:12]} 5. Bd3 {[%emt 0:00:54]} Nc6 {[%emt 0:01:00]} 6. Nb3 {[%emt 0:01:25]} Be7 {[%emt 0:03:31]} 7. O-O {[%emt 0:00:39]} O-O {[%emt 0:01:36]} 8. Kh1 {[%emt 0:00:46]} Qc7 {[%emt 0:10:57]} 9. f4 {[%emt 0:00:36]} d6 {[%emt 0:00:46]} 10. Nc3 {[%emt 0:01:40]} a6 {[%emt 0:01:25]} 11. Be3 {[%emt 0:00:43]} Rb8 {[%emt 0:07:17]} 12. Qf3 {[%emt 0:02:15]} b5 {[%emt 0:02:26]} 13. Ne2 {[%emt 0:01:08]} g6 {[%emt 0:09:51]} 14. Ned4 {[%emt 0:01:24]} Bd7 {[%emt 0:06:00]} 15. Nxc6 {[%emt 0:01:04]} Bxc6 {[%emt 0:00:09]} 16. Nd4 {[%emt 0:00:49]} Bd7 {[%emt 0:00:40]} 17. f5 {[%emt 0:03:50]} e5 {[%emt 0:02:19]} 18. Ne2 {[%emt 0:01:59]} Bc6 {[%emt 0:02:54]} 19. Bh6 {[%emt 0:01:13]} d5 {[%emt 0:01:19]} 20. Ng3 {[%emt 0:01:07]} dxe4 {[%emt 0:05:21]} 21. Nxe4 {[%emt 0:00:43]} Nxe4 {[%emt 0:00:46]} 22. Bxe4 {[%emt 0:01:12]} Bxe4 {[%emt 0:00:11]} 23. Qxe4 {[%emt 0:01:14]} Rfe8 {[%emt 0:01:28]} 24. fxg6 {[%emt 0:01:56]} hxg6 {[%emt 0:00:43]} 25. Rxf7 {[%emt 0:06:59]} Kxf7 {[%emt 0:00:52]} 26. Qd5+ {[%emt 0:00:45]} 1-0

[Event "Slovakia Chess Open 2024"]
[Site "Modra"]
[Date "2024.03.04"]
[Round "7.11"]
[White "Banas, Samuel"]
[Black "Visvader, Kristof"]
[Result "0-1"]
[ECO "C60"]
[WhiteElo "1733"]
[BlackElo "1696"]
[Annotator "NA RC"]
[PlyCount "42"]
[EventDate "2024.02.29"]
[EventType "swiss"]
[EventCountry "SVK"]
[SourceTitle "playchess.com"]
[Source "ChessBase"]
[SourceQuality "1"]
[TimeControl "5400+30"]

1. e4 {[%emt 0:00:03]} e5 {[%emt 0:00:11]} 2. Nf3 {[%emt 0:00:30]} Nc6 {[%emt 0:00:09]} 3. Bb5 {[%emt 0:00:03]} Nge7 {[%emt 0:00:09]} 4. d4 {[%emt 0:00:08]} exd4 {[%emt 0:06:12]} 5. Nxd4 {[%emt 0:00:25]} g6 {[%emt 0:00:43]} 6. O-O {[%emt 0:01:22]} Bg7 {[%emt 0:00:21]} 7. Nf3 {[%emt 0:00:05]} O-O {[%emt 0:00:37]} 8. Nc3 {[%emt 0:00:20]} d6 {[%emt 0:00:36]} 9. Bf4 {[%emt 0:00:30]} Bg4 {[%emt 0:02:30]} 10. h3 {[%emt 0:00:09]} Bxf3 {[%emt 0:02:29]} 11. Qxf3 {[%emt 0:00:10]} f5 {[%emt 0:13:17]} 12. exf5 {[%emt 0:00:55]} Rxf5 {[%emt 0:03:46]} 13. Bc4+ {[%emt 0:03:34]} Kh8 {[%emt 0:01:04]} 14. Rfe1 {[%emt 0:01:15]} Qf8 {[%emt 0:00:33]} 15. Rad1 {[%emt 0:01:30]} Rxf4 {[%emt 0:00:40]} 16. Qe2 {[%emt 0:03:35]} Re8 {[%emt 0:05:00]} 17. Nb5 {[%emt 0:02:56]} Nd4 {[%emt 0:07:31]} 18. Nxd4 {[%emt 0:04:45]} Bxd4 {[%emt 0:00:30]} 19. Kh1 {[%emt 0:00:05]} Bxf2 {[%emt 0:03:37]} 20. Rf1 {[%emt 0:00:10]} Nc6 {[%emt 0:01:08]} 21. Qd3 {[%emt 0:01:23]} Ne5 {[%emt 0:01:43]} 0-1

[Event "Slovakia Chess Open 2024"]
[Site "Modra"]
[Date "2024.03.04"]
[Round "7.12"]
[White "Loffay, Pavol"]
[Black "Veres, Alex"]
[Result "1-0"]
[ECO "C30"]
[WhiteElo "1753"]
[BlackElo "1584"]
[Annotator "NA RC"]
[PlyCount "59"]
[EventDate "2024.02.29"]
[EventType "swiss"]
[EventCountry "SVK"]
[SourceTitle "playchess.com"]
[Source "ChessBase"]
[SourceQuality "1"]
[TimeControl "5400+30"]

1. f4 {[%emt 0:00:04]} e5 {[%emt 0:00:48]} 2. e4 {[%emt 0:00:06]} d6 {[%emt 0:02:52]} 3. Nf3 {[%emt 0:00:08]} Nc6 {[%emt 0:00:34]} 4. Bc4 {[%emt 0:00:29]} Bg4 {[%emt 0:01:15]} 5. h3 {[%emt 0:00:41]} Bxf3 {[%emt 0:02:24]} 6. Qxf3 {[%emt 0:00:10]} Nd4 {[%emt 0:00:41]} 7. Qc3 {[%emt 0:01:09]} Nf6 {[%emt 0:02:41]} 8. d3 {[%emt 0:00:54]} g6 {[%emt 0:07:10]} 9. Be3 {[%emt 0:01:03]} Bg7 {[%emt 0:06:11]} 10. Bxd4 {[%emt 0:00:42]} exd4 {[%emt 0:00:50]} 11. Qb3 {[%emt 0:00:40]} O-O {[%emt 0:03:23]} 12. O-O {[%emt 0:03:42]} b6 {[%emt 0:04:26]} 13. Qb4 {[%emt 0:01:31]} d5 {[%emt 0:05:46]} 14. Bxd5 {[%emt 0:01:39]} Nxd5 {[%emt 0:00:15]} 15. exd5 {[%emt 0:00:04]} Qxd5 {[%emt 0:00:15]} 16. Nd2 {[%emt 0:00:17]} c5 {[%emt 0:00:34]} 17. Qb3 {[%emt 0:00:27]} Qxb3 {[%emt 0:19:25]} 18. axb3 {[%emt 0:00:08]} Rfe8 {[%emt 0:00:28]} 19. Rae1 {[%emt 0:05:08]} Rxe1 {[%emt 0:03:46]} 20. Rxe1 {[%emt 0:00:25]} Kf8 {[%emt 0:00:26]} 21. Kf2 {[%emt 0:05:19]} Re8 {[%emt 0:01:30]} 22. Ne4 {[%emt 0:02:53]} f5 {[%emt 0:02:28]} 23. Nd6 {[%emt 0:14:49]} Rxe1 {[%emt 0:01:36]} 24. Kxe1 {[%emt 0:00:09]} a6 {[%emt 0:01:13]} 25. g4 {[%emt 0:00:34]} Ke7 {[%emt 0:00:50]} 26. Nc8+ {[%emt 0:00:15]} Kd8 {[%emt 0:03:00]} 27. Nxb6 {[%emt 0:00:15]} Kc7 {[%emt 0:01:16]} 28. Nc4 {[%emt 0:00:23]} Kc6 {[%emt 0:01:12]} 29. Ke2 {[%emt 0:01:01]} Kb5 {[%emt 0:01:23]} 30. gxf5 {[%emt 0:02:23]} 1-0

[Event "Slovakia Chess Open 2024"]
[Site "Modra"]
[Date "2024.03.04"]
[Round "7.13"]
[White "Hitka, Dominik"]
[Black "Smolka, Robert"]
[Result "1-0"]
[ECO "A06"]
[WhiteElo "1709"]
[BlackElo "1620"]
[Annotator "NA RC"]
[PlyCount "83"]
[EventDate "2024.02.29"]
[EventType "swiss"]
[EventCountry "SVK"]
[SourceTitle "playchess.com"]
[Source "ChessBase"]
[SourceQuality "1"]
[TimeControl "5400+30"]

1. Nf3 {[%emt 0:00:03]} Nf6 {[%emt 0:02:59]} 2. c4 {[%emt 0:00:08]} e6 {[%emt 0:01:44]} 3. b3 {[%emt 0:01:40]} d5 {[%emt 0:00:52]} 4. e3 {[%emt 0:00:07]} c6 {[%emt 0:01:52]} 5. Bb2 {[%emt 0:00:19]} Bd6 {[%emt 0:07:25]} 6. Be2 {[%emt 0:00:17]} Nbd7 {[%emt 0:00:27]} 7. d4 {[%emt 0:00:25]} c5 {[%emt 0:02:58]} 8. Nbd2 {[%emt 0:00:30]} Qe7 {[%emt 0:02:23]} 9. Qc2 {[%emt 0:00:23]} e5 {[%emt 0:05:19]} 10. dxe5 {[%emt 0:00:27]} Bxe5 {[%emt 0:01:17]} 11. Nxe5 {[%emt 0:00:58]} Nxe5 {[%emt 0:00:03]} 12. Nf3 {[%emt 0:00:48]} Nc6 {[%emt 0:09:07]} 13. cxd5 {[%emt 0:00:34]} Nxd5 {[%emt 0:00:35]} 14. Bxg7 {[%emt 0:01:49]} Rg8 {[%emt 0:01:49]} 15. Qxh7 {[%emt 0:00:16]} Rxg7 {[%emt 0:08:03]} 16. Qxg7 {[%emt 0:00:23]} Bf5 {[%emt 0:05:49]} 17. Qh8+ {[%emt 0:00:14]} Qf8 {[%emt 0:01:04]} 18. Qxf8+ {[%emt 0:00:09]} Kxf8 {[%emt 0:00:01]} 19. O-O {[%emt 0:00:11]} Nf6 {[%emt 0:03:08]} 20. Rfd1 {[%emt 0:00:16]} Ke7 {[%emt 0:00:24]} 21. Rd2 {[%emt 0:00:14]} Ne4 {[%emt 0:01:27]} 22. Rd5 {[%emt 0:00:29]} Be6 {[%emt 0:01:28]} 23. Rh5 {[%emt 0:00:21]} Rg8 {[%emt 0:01:11]} 24. Bd3 {[%emt 0:00:55]} Bg4 {[%emt 0:01:08]} 25. Bxe4 {[%emt 0:01:43]} Bxh5 {[%emt 0:00:14]} 26. Bxc6 {[%emt 0:00:11]} bxc6 {[%emt 0:00:18]} 27. Kf1 {[%emt 0:00:13]} Rd8 {[%emt 0:05:13]} 28. Ke2 {[%emt 0:01:13]} Rd5 {[%emt 0:02:05]} 29. h3 {[%emt 0:00:24]} Bg6 {[%emt 0:00:57]} 30. Rd1 {[%emt 0:00:35]} f6 {[%emt 0:01:02]} 31. Ne1 {[%emt 0:01:34]} a5 {[%emt 0:01:32]} 32. Nd3 {[%emt 0:00:55]} Bf5 {[%emt 0:02:07]} 33. Nf4 {[%emt 0:00:27]} Rxd1 {[%emt 0:01:05]} 34. Kxd1 {[%emt 0:00:02]} Bb1 {[%emt 0:01:36]} 35. a3 {[%emt 0:01:02]} Kd6 {[%emt 0:01:10]} 36. Kd2 {[%emt 0:00:28]} Bh7 {[%emt 0:01:35]} 37. f3 {[%emt 0:00:46]} Bg8 {[%emt 0:00:26]} 38. Kc3 {[%emt 0:00:16]} Bf7 {[%emt 0:03:05]} 39. Nd3 {[%emt 0:00:19]} Be6 {[%emt 0:01:49]} 40. Nb2 {[%emt 0:00:25]} Kd5 {[%emt 0:04:04]} 41. Nc4 {[%emt 0:00:21]} a4 {[%emt 0:01:59]} 42. e4# {[%emt 0:00:12]} 1-0

[Event "Slovakia Chess Open 2024"]
[Site "Modra"]
[Date "2024.03.04"]
[Round "7.14"]
[White "Pikulik, Roman"]
[Black "Lepejova Viola"]
[Result "1-0"]
[ECO "C30"]
[WhiteElo "1675"]
[BlackElo "1000"]
[Annotator "NA"]
[PlyCount "41"]
[EventDate "2024.02.29"]
[EventType "swiss"]
[EventCountry "SVK"]
[SourceTitle "playchess.com"]
[Source "ChessBase"]
[SourceQuality "1"]
[TimeControl "5400+30"]

1. e4 {[%emt 0:00:07]} e5 {[%emt 0:02:51]} 2. Nc3 {[%emt 0:00:12]} d6 {[%emt 0:00:59]} 3. f4 {[%emt 0:00:00]} Nf6 {[%emt 0:00:30]} 4. Nf3 {[%emt 0:00:28]} exf4 {[%emt 0:00:30]} 5. Bc4 {[%emt 0:06:20]} c6 {[%emt 0:03:09]} 6. O-O {[%emt 0:04:40]} Be7 {[%emt 0:03:54]} 7. d4 {[%emt 0:08:52]} Be6 {[%emt 0:00:30]} 8. Bxe6 {[%emt 0:00:30]} fxe6 {[%emt 0:00:16]} 9. Ng5 {[%emt 0:00:43]} e5 {[%emt 0:01:33]} 10. Ne6 {[%emt 0:01:57]} Qb6 {[%emt 0:02:07]} 11. Kh1 {[%emt 0:02:11]} d5 {[%emt 0:01:29]} 12. dxe5 {[%emt 0:00:54]} Nfd7 {[%emt 0:06:49]} 13. Bxf4 {[%emt 0:11:58]} Nc5 {[%emt 0:04:20]} 14. exd5 {[%emt 0:11:45]} Nbd7 {[%emt 0:02:48]} 15. Nxg7+ {[%emt 0:03:58]} Kd8 {[%emt 0:00:32]} 16. dxc6 {[%emt 0:03:13]} Qxc6 {[%emt 0:01:04]} 17. b4 {[%emt 0:02:01]} Na6 {[%emt 0:03:50]} 18. e6 {[%emt 0:00:44]} Nxb4 {[%emt 0:00:30]} 19. exd7 {[%emt 0:02:17]} Rg8 {[%emt 0:01:01]} 20. Be5 {[%emt 0:04:41]} Bf8 {[%emt 0:01:52]} 21. Bf6+ {[%emt 0:07:03]} 1-0

[Event "Slovakia Chess Open 2024"]
[Site "Modra"]
[Date "2024.03.04"]
[Round "7.16"]
[White "Rozboril, Alex"]
[Black "Gonda, Jan"]
[Result "0-1"]
[ECO "B43"]
[WhiteElo "1563"]
[BlackElo "1657"]
[Annotator "NA RC"]
[PlyCount "78"]
[EventDate "2024.02.29"]
[EventType "swiss"]
[EventCountry "SVK"]
[SourceTitle "playchess.com"]
[Source "ChessBase"]
[SourceQuality "1"]
[TimeControl "5400+30"]

1. e4 {[%emt 0:00:27]} c5 {[%emt 0:01:21]} 2. Nf3 {[%emt 0:00:05]} d6 {[%emt 0:00:06]} 3. d4 {[%emt 0:00:32]} cxd4 {[%emt 0:00:06]} 4. Nxd4 {[%emt 0:00:08]} e6 {[%emt 0:00:06]} 5. Nc3 {[%emt 0:00:24]} a6 {[%emt 0:00:06]} 6. g3 {[%emt 0:00:58]} b5 {[%emt 0:00:22]} 7. a3 {[%emt 0:00:34]} Bb7 {[%emt 0:00:06]} 8. Bg2 {[%emt 0:00:23]} Qc7 {[%emt 0:02:00]} 9. O-O {[%emt 0:04:11]} Nf6 {[%emt 0:00:08]} 10. Be3 {[%emt 0:02:35]} Be7 {[%emt 0:00:18]} 11. Qd2 {[%emt 0:05:07]} O-O {[%emt 0:00:38]} 12. f4 {[%emt 0:01:34]} Ng4 {[%emt 0:02:02]} 13. h3 {[%emt 0:04:33]} Nxe3 {[%emt 0:00:08]} 14. Qxe3 {[%emt 0:00:09]} Nd7 {[%emt 0:01:12]} 15. Rad1 {[%emt 0:06:47]} Rac8 {[%emt 0:00:17]} 16. Rd2 {[%emt 0:05:17]} Nb6 {[%emt 0:00:51]} 17. b3 {[%emt 0:03:52]} Qxc3 {[%emt 0:00:19]} 18. Qxc3 {[%emt 0:00:16]} Rxc3 {[%emt 0:00:17]} 19. Kh2 {[%emt 0:02:08]} d5 {[%emt 0:01:26]} 20. e5 {[%emt 0:04:21]} Bxa3 {[%emt 0:00:28]} 21. g4 {[%emt 0:05:20]} Rfc8 {[%emt 0:00:22]} 22. f5 {[%emt 0:01:33]} exf5 {[%emt 0:00:43]} 23. gxf5 {[%emt 0:00:09]} Bc5 {[%emt 0:03:35]} 24. Nf3 {[%emt 0:06:13]} d4 {[%emt 0:05:05]} 25. Nxd4 {[%emt 0:05:28]} Bxg2 {[%emt 0:00:18]} 26. Kxg2 {[%emt 0:00:16]} Bxd4 {[%emt 0:00:30]} 27. Rxd4 {[%emt 0:00:09]} Rxc2+ {[%emt 0:00:57]} 28. Kg3 {[%emt 0:00:50]} h6 {[%emt 0:01:49]} 29. Kf4 {[%emt 0:02:15]} R2c3 {[%emt 0:01:07]} 30. Rf3 {[%emt 0:01:04]} Rxf3+ {[%emt 0:00:15]} 31. Kxf3 {[%emt 0:00:09]} Rc3+ {[%emt 0:00:13]} 32. Kg4 {[%emt 0:00:10]} Rxb3 {[%emt 0:00:10]} 33. f6 {[%emt 0:00:40]} Rc3 {[%emt 0:00:48]} 34. Rd8+ {[%emt 0:01:09]} Kh7 {[%emt 0:00:08]} 35. Rf8 {[%emt 0:03:23]} Kg6 {[%emt 0:00:35]} 36. e6 {[%emt 0:01:31]} fxe6 {[%emt 0:04:11]} 37. f7 {[%emt 0:00:15]} Nd7 {[%emt 0:01:26]} 38. Ra8 {[%emt 0:02:18]} Kxf7 {[%emt 0:00:39]} 39. Rxa6 {[%emt 0:00:14]} Kf6 {[%emt 0:01:06]} 0-1

[Event "Slovakia Chess Open 2024"]
[Site "Modra"]
[Date "2024.03.04"]
[Round "7.17"]
[White "Mruskovic, Ondrej"]
[Black "Zentko, Ladislav"]
[Result "1-0"]
[ECO "C87"]
[WhiteElo "1510"]
[BlackElo "1749"]
[Annotator "NA RC"]
[PlyCount "72"]
[EventDate "2024.02.29"]
[EventType "swiss"]
[EventCountry "SVK"]
[SourceTitle "playchess.com"]
[Source "ChessBase"]
[SourceQuality "1"]
[TimeControl "5400+30"]

1. e4 {[%emt 0:00:02]} e5 {[%emt 0:00:09]} 2. Nf3 {[%emt 0:00:05]} Nc6 {[%emt 0:00:08]} 3. Bb5 {[%emt 0:00:07]} a6 {[%emt 0:00:06]} 4. Ba4 {[%emt 0:00:06]} d6 {[%emt 0:00:06]} 5. O-O {[%emt 0:00:13]} Nf6 {[%emt 0:00:09]} 6. Re1 {[%emt 0:00:12]} Be7 {[%emt 0:00:09]} 7. c3 {[%emt 0:00:11]} O-O {[%emt 0:00:25]} 8. d4 {[%emt 0:00:12]} Bd7 {[%emt 0:02:43]} 9. h3 {[%emt 0:01:22]} Re8 {[%emt 0:02:25]} 10. Bg5 {[%emt 0:05:28]} exd4 {[%emt 0:12:15]} 11. cxd4 {[%emt 0:02:59]} d5 {[%emt 0:00:31]} 12. exd5 {[%emt 0:05:39]} Nxd5 {[%emt 0:05:15]} 13. Bxe7 {[%emt 0:00:30]} Ncxe7 {[%emt 0:00:30]} 14. Bb3 {[%emt 0:01:05]} Bf5 {[%emt 0:03:54]} 15. Nc3 {[%emt 0:02:18]} Nxc3 {[%emt 0:23:36]} 16. bxc3 {[%emt 0:02:44]} Qd6 {[%emt 0:00:30]} 17. Ng5 {[%emt 0:00:30]} Bg6 {[%emt 0:00:30]} 18. Qf3 {[%emt 0:00:30]} Nf5 {[%emt 0:00:30]} 19. Qxb7 {[%emt 0:03:23]} Qf4 {[%emt 0:01:02]} 20. Nf3 {[%emt 0:01:50]} Nd6 {[%emt 0:01:05]} 21. Rxe8+ {[%emt 0:04:05]} Rxe8 {[%emt 0:00:11]} 22. Qxa6 {[%emt 0:03:00]} h6 {[%emt 0:00:35]} 23. Qf1 {[%emt 0:11:31]} Bf5 {[%emt 0:02:32]} 24. Re1 {[%emt 0:01:14]} Rxe1 {[%emt 0:06:06]} 25. Qxe1 {[%emt 0:00:12]} Bxh3 {[%emt 0:00:40]} 26. Qe3 {[%emt 0:11:00]} Qxe3 {[%emt 0:00:33]} 27. fxe3 {[%emt 0:00:31]} Bf5 {[%emt 0:00:32]} 28. c4 {[%emt 0:03:13]} Be4 {[%emt 0:06:21]} 29. a4 {[%emt 0:09:19]} Kf8 {[%emt 0:00:30]} 30. a5 {[%emt 0:00:30]} f6 {[%emt 0:00:30]} 31. a6 {[%emt 0:00:30]} Ba8 {[%emt 0:00:30]} 32. Kf2 {[%emt 0:00:30]} Ke7 {[%emt 0:00:30]} 33. c5 {[%emt 0:00:30]} Nb5 {[%emt 0:00:30]} 34. Bc4 {[%emt 0:00:30]} Na3 {[%emt 0:00:30]} 35. Be2 {[%emt 0:00:30]} c6 {[%emt 0:00:30]} 36. g3 {[%emt 0:15:33]} g6 {[%emt 0:07:13]} 1-0